[Event "Titled Tuesday Blitz March 07 Early 2023"]
[White "Petrova, Irina"]
[Black "Costachi, Mihnea"]
[WhiteFideId "14124122"]
[BlackFideId "1217518"]
[WhiteElo "2084"]
[BlackElo "2456"]
[Result "0-1"]
[Round "01"]
[TimeControl "180+2"]
[Date "2023.03.07"]
[WhiteClock "0:00:11"]
[BlackClock "0:00:24"]

1. e4 {[%clk 0:02:58]}  e5 {[%clk 0:02:58]} 2. Nf3 {[%clk 0:02:58]}  Nc6 {[%clk 0:02:57]} 3. Bb5 {[%clk 0:02:58]}  a6 {[%clk 0:02:58]} 4. Ba4 {[%clk 0:02:59]}  d6 {[%clk 0:02:59]} 5. O-O {[%clk 0:02:51]}  Bd7 {[%clk 0:02:58]} 6. d3 {[%clk 0:02:49]}  g6 {[%clk 0:02:57]} 7. c3 {[%clk 0:02:47]}  Bg7 {[%clk 0:02:57]} 8. Nbd2 {[%clk 0:02:47]}  Nf6 {[%clk 0:02:58]} 9. Re1 {[%clk 0:02:42]}  O-O {[%clk 0:02:58]} 10. Nf1 {[%clk 0:02:37]}  h6 {[%clk 0:02:56]} 11. Ng3 {[%clk 0:02:36]}  Re8 {[%clk 0:02:56]} 12. h3 {[%clk 0:02:33]}  b5 {[%clk 0:02:56]} 13. Bc2 {[%clk 0:02:30]}  Na5 {[%clk 0:02:57]} 14. Be3 {[%clk 0:02:22]}  c5 {[%clk 0:02:56]} 15. Qd2 {[%clk 0:02:15]}  Kh7 {[%clk 0:02:57]} 16. Rad1 {[%clk 0:02:08]}  Qc7 {[%clk 0:02:51]} 17. Qe2 {[%clk 0:02:08]}  Rac8 {[%clk 0:02:48]} 18. Bc1 {[%clk 0:02:04]}  d5 {[%clk 0:02:44]} 19. Nh2 {[%clk 0:01:54]}  d4 {[%clk 0:02:35]} 20. Ng4 {[%clk 0:01:52]}  Bxg4 {[%clk 0:02:27]} 21. hxg4 {[%clk 0:01:51]}  Qd7 {[%clk 0:02:27]} 22. g5 {[%clk 0:01:45]}  hxg5 {[%clk 0:02:28]} 23. Bxg5 {[%clk 0:01:45]}  Qg4 {[%clk 0:02:29]} 24. Qxg4 {[%clk 0:01:25]}  Nxg4 {[%clk 0:02:30]} 25. f3 {[%clk 0:01:26]}  Bh6 {[%clk 0:02:20]} 26. Bxh6 {[%clk 0:01:22]}  Nxh6 {[%clk 0:02:21]} 27. Kf2 {[%clk 0:01:22]}  Kg7 {[%clk 0:02:16]} 28. Rh1 {[%clk 0:01:21]}  f6 {[%clk 0:02:13]} 29. Ne2 {[%clk 0:01:18]}  Nf7 {[%clk 0:02:09]} 30. Rh2 {[%clk 0:01:11]}  Rh8 {[%clk 0:02:10]} 31. Rdh1 {[%clk 0:01:11]}  Rxh2 {[%clk 0:02:09]} 32. Rxh2 {[%clk 0:01:12]}  f5 {[%clk 0:01:50]} 33. exf5 {[%clk 0:01:02]}  gxf5 {[%clk 0:01:49]} 34. Ng3 {[%clk 0:01:02]}  Kg6 {[%clk 0:01:43]} 35. Bd1 {[%clk 0:00:49]}  Rd8 {[%clk 0:01:30]} 36. Be2 {[%clk 0:00:49]}  Nc6 {[%clk 0:01:26]} 37. f4 {[%clk 0:00:46]}  exf4 {[%clk 0:01:20]} 38. Bh5+ {[%clk 0:00:46]}  Kf6 {[%clk 0:01:19]} 39. Nxf5 {[%clk 0:00:41]}  dxc3 {[%clk 0:01:09]} 40. bxc3 {[%clk 0:00:37]}  Rxd3 {[%clk 0:01:06]} 41. Bxf7 {[%clk 0:00:36]}  Kxf7 {[%clk 0:00:58]} 42. Rh3 {[%clk 0:00:37]}  Rd5 {[%clk 0:00:38]} 43. Rh7+ {[%clk 0:00:24]}  Kf6 {[%clk 0:00:28]} 44. Rh6+ {[%clk 0:00:24]}  Kxf5 {[%clk 0:00:29]} 45. Rxc6 {[%clk 0:00:24]}  Rd2+ {[%clk 0:00:25]} 46. Kf3 {[%clk 0:00:24]}  Rd3+ {[%clk 0:00:25]} 47. Kf2 {[%clk 0:00:24]}  Rxc3 {[%clk 0:00:26]} 48. Rxa6 {[%clk 0:00:24]}  Ke4 {[%clk 0:00:27]} 49. Re6+ {[%clk 0:00:24]}  Kd4 {[%clk 0:00:27]} 50. Rd6+ {[%clk 0:00:24]}  Ke5 {[%clk 0:00:27]} 51. Rb6 {[%clk 0:00:23]}  b4 {[%clk 0:00:27]} 52. Ra6 {[%clk 0:00:22]}  Rc2+ {[%clk 0:00:24]} 53. Kf3 {[%clk 0:00:22]}  Rc3+ {[%clk 0:00:25]} 54. Kf2 {[%clk 0:00:23]}  Kd5 {[%clk 0:00:23]} 55. Ra5 {[%clk 0:00:19]}  Ke4 {[%clk 0:00:22]} 56. Ra8 {[%clk 0:00:17]}  Rc2+ {[%clk 0:00:23]} 57. Kf1 {[%clk 0:00:17]}  Ke3 {[%clk 0:00:23]} 58. Re8+ {[%clk 0:00:17]}  Kd3 {[%clk 0:00:23]} 59. Rd8+ {[%clk 0:00:17]}  Kc3 {[%clk 0:00:23]} 60. Rf8 {[%clk 0:00:17]}  Rxa2 {[%clk 0:00:22]} 61. Rxf4 {[%clk 0:00:18]}  b3 {[%clk 0:00:22]} 62. Rf3+ {[%clk 0:00:18]}  Kb4 {[%clk 0:00:23]} 63. Rf4+ {[%clk 0:00:18]}  c4 {[%clk 0:00:23]} 64. Rf8 {[%clk 0:00:13]}  Ra1+ {[%clk 0:00:23]} 65. Ke2 {[%clk 0:00:12]}  b2 {[%clk 0:00:24]} 66. Rb8+ {[%clk 0:00:11]}  Kc3 {[%clk 0:00:24]} 0-1


[Site "https://www.chess.com"]

[Event "Titled Tuesday Blitz March 07 Early 2023"]
[White "Koridze, Lile"]
[Black "Pulpan, Jakub"]
[WhiteFideId "13612514"]
[BlackFideId "302759"]
[WhiteElo "2047"]
[BlackElo "2484"]
[Result "0-1"]
[Round "01"]
[TimeControl "180+2"]
[Date "2023.03.07"]
[WhiteClock "0:00:05"]
[BlackClock "0:00:05"]

1. d4 {[%clk 0:03:00]}  Nf6 {[%clk 0:02:22]} 2. c4 {[%clk 0:03:00]}  e6 {[%clk 0:02:22]} 3. Nf3 {[%clk 0:02:59]}  b6 {[%clk 0:02:19]} 4. g3 {[%clk 0:02:59]}  Bb7 {[%clk 0:02:18]} 5. Bg2 {[%clk 0:02:59]}  Be7 {[%clk 0:02:18]} 6. O-O {[%clk 0:02:59]}  O-O {[%clk 0:02:18]} 7. Re1 {[%clk 0:02:54]}  Na6 {[%clk 0:02:16]} 8. a3 {[%clk 0:02:51]}  h6 {[%clk 0:02:12]} 9. Nc3 {[%clk 0:02:50]}  Ne4 {[%clk 0:02:11]} 10. Qc2 {[%clk 0:02:49]}  f5 {[%clk 0:01:56]} 11. Nd2 {[%clk 0:02:41]}  d5 {[%clk 0:01:50]} 12. b4 {[%clk 0:02:28]}  Nxc3 {[%clk 0:01:42]} 13. Qxc3 {[%clk 0:02:28]}  c6 {[%clk 0:01:42]} 14. Nf3 {[%clk 0:02:25]}  Bf6 {[%clk 0:01:26]} 15. Bb2 {[%clk 0:02:24]}  Rc8 {[%clk 0:01:25]} 16. Qb3 {[%clk 0:02:22]}  Qe7 {[%clk 0:01:18]} 17. Nd2 {[%clk 0:02:13]}  Kh8 {[%clk 0:01:13]} 18. f3 {[%clk 0:02:01]}  c5 {[%clk 0:01:01]} 19. dxc5 {[%clk 0:02:00]}  Bxb2 {[%clk 0:00:59]} 20. Qxb2 {[%clk 0:02:00]}  bxc5 {[%clk 0:01:00]} 21. b5 {[%clk 0:01:58]}  Nc7 {[%clk 0:00:59]} 22. e4 {[%clk 0:01:59]}  dxe4 {[%clk 0:00:35]} 23. fxe4 {[%clk 0:01:58]}  f4 {[%clk 0:00:36]} 24. Nf3 {[%clk 0:01:57]}  fxg3 {[%clk 0:00:30]} 25. hxg3 {[%clk 0:01:56]}  Ne8 {[%clk 0:00:29]} 26. Ne5 {[%clk 0:01:32]}  Kh7 {[%clk 0:00:27]} 27. Rf1 {[%clk 0:01:31]}  Nd6 {[%clk 0:00:25]} 28. Qe2 {[%clk 0:01:25]}  Qg5 {[%clk 0:00:23]} 29. Ng4 {[%clk 0:00:31]}  Nxc4 {[%clk 0:00:16]} 30. Qxc4 {[%clk 0:00:20]}  Qxg4 {[%clk 0:00:17]} 31. Rxf8 {[%clk 0:00:20]}  Rxf8 {[%clk 0:00:17]} 32. Qxc5 {[%clk 0:00:21]}  Rc8 {[%clk 0:00:10]} 33. Qf2 {[%clk 0:00:17]}  Bxe4 {[%clk 0:00:09]} 34. Qd4 {[%clk 0:00:16]}  Bf3 {[%clk 0:00:04]} 35. Qxa7 {[%clk 0:00:15]}  Qxg3 {[%clk 0:00:02]} 36. Qf2 {[%clk 0:00:15]}  Qxg2+ {[%clk 0:00:02]} 37. Qxg2 {[%clk 0:00:15]}  Bxg2 {[%clk 0:00:03]} 38. Kxg2 {[%clk 0:00:16]}  Rc2+ {[%clk 0:00:03]} 39. Kf3 {[%clk 0:00:16]}  Rb2 {[%clk 0:00:04]} 40. a4 {[%clk 0:00:16]}  h5 {[%clk 0:00:05]} 41. Ke4 {[%clk 0:00:16]}  h4 {[%clk 0:00:05]} 42. Ke5 {[%clk 0:00:15]}  g5 {[%clk 0:00:04]} 43. Kxe6 {[%clk 0:00:15]}  h3 {[%clk 0:00:05]} 44. Kf5 {[%clk 0:00:14]}  h2 {[%clk 0:00:04]} 45. a5 {[%clk 0:00:13]}  Rf2+ {[%clk 0:00:04]} 46. Kg4 {[%clk 0:00:13]}  Rg2+ {[%clk 0:00:04]} 47. Kf3 {[%clk 0:00:11]}  Rg1 {[%clk 0:00:05]} 48. Ra2 {[%clk 0:00:05]}  h1=Q+ {[%clk 0:00:05]} 0-1


[Site "https://www.chess.com"]

[Event "Titled Tuesday Blitz March 07 Early 2023"]
[White "Lortkipanidze, Nodar"]
[Black "Foerster-Yialamas, Lucas"]
[WhiteFideId "13604058"]
[BlackFideId "30901774"]
[WhiteElo "2336"]
[BlackElo "2067"]
[Result "1-0"]
[Round "01"]
[TimeControl "180+2"]
[Date "2023.03.07"]
[WhiteClock "0:00:20"]
[BlackClock "0:00:02"]

1. e4 {[%clk 0:03:00]}  e6 {[%clk 0:02:58]} 2. d4 {[%clk 0:02:59]}  b6 {[%clk 0:02:58]} 3. Bd3 {[%clk 0:02:56]}  Bb7 {[%clk 0:02:58]} 4. Nf3 {[%clk 0:02:57]}  c5 {[%clk 0:02:56]} 5. d5 {[%clk 0:02:57]}  exd5 {[%clk 0:02:56]} 6. exd5 {[%clk 0:02:58]}  Bxd5 {[%clk 0:02:56]} 7. Nc3 {[%clk 0:02:58]}  Bc6 {[%clk 0:02:55]} 8. O-O {[%clk 0:02:56]}  Be7 {[%clk 0:02:55]} 9. Re1 {[%clk 0:02:46]}  Nf6 {[%clk 0:02:55]} 10. Qe2 {[%clk 0:02:42]}  d5 {[%clk 0:02:47]} 11. Bg5 {[%clk 0:02:41]}  Nbd7 {[%clk 0:02:45]} 12. Bf5 {[%clk 0:02:30]}  d4 {[%clk 0:02:18]} 13. Bxd7+ {[%clk 0:02:22]}  Qxd7 {[%clk 0:02:17]} 14. Ne5 {[%clk 0:02:20]}  Qc7 {[%clk 0:02:11]} 15. Nxc6 {[%clk 0:02:19]}  O-O {[%clk 0:02:11]} 16. Nxe7+ {[%clk 0:02:18]}  Kh8 {[%clk 0:02:11]} 17. Bxf6 {[%clk 0:02:18]}  gxf6 {[%clk 0:02:10]} 18. Ncd5 {[%clk 0:02:19]}  Qe5 {[%clk 0:02:08]} 19. Qxe5 {[%clk 0:02:18]}  fxe5 {[%clk 0:02:09]} 20. Rxe5 {[%clk 0:02:19]}  Rad8 {[%clk 0:02:06]} 21. Rae1 {[%clk 0:02:18]}  Rd6 {[%clk 0:02:02]} 22. Nf5 {[%clk 0:02:18]}  Re6 {[%clk 0:02:00]} 23. g4 {[%clk 0:02:15]}  h5 {[%clk 0:01:49]} 24. Rxe6 {[%clk 0:02:13]}  fxe6 {[%clk 0:01:50]} 25. Rxe6 {[%clk 0:02:14]}  hxg4 {[%clk 0:01:51]} 26. Rh6+ {[%clk 0:02:12]}  Kg8 {[%clk 0:01:50]} 27. Rg6+ {[%clk 0:01:45]}  Kh7 {[%clk 0:01:50]} 28. Rg7+ {[%clk 0:01:45]}  Kh8 {[%clk 0:01:50]} 29. Rg5 {[%clk 0:01:46]}  Rf7 {[%clk 0:01:48]} 30. Nf4 {[%clk 0:01:45]}  Rf6 {[%clk 0:01:46]} 31. Nh5 {[%clk 0:01:39]}  Rf8 {[%clk 0:01:44]} 32. Kg2 {[%clk 0:01:38]}  b5 {[%clk 0:01:42]} 33. Kg3 {[%clk 0:01:37]}  c4 {[%clk 0:01:40]} 34. Nxd4 {[%clk 0:01:37]}  b4 {[%clk 0:01:36]} 35. Nf4 {[%clk 0:01:36]}  Rf7 {[%clk 0:01:33]} 36. Ng6+ {[%clk 0:01:35]}  Kh7 {[%clk 0:01:33]} 37. Ne5 {[%clk 0:01:35]}  Re7 {[%clk 0:01:32]} 38. Kxg4 {[%clk 0:01:34]}  b3 {[%clk 0:01:30]} 39. cxb3 {[%clk 0:01:34]}  cxb3 {[%clk 0:01:31]} 40. axb3 {[%clk 0:01:35]}  a5 {[%clk 0:01:29]} 41. f4 {[%clk 0:01:29]}  a4 {[%clk 0:01:28]} 42. Nf5 {[%clk 0:01:30]}  Rb7 {[%clk 0:01:26]} 43. Rh5+ {[%clk 0:01:29]}  Kg8 {[%clk 0:01:25]} 44. Ng6 {[%clk 0:01:29]}  axb3 {[%clk 0:01:18]} 45. Rh8+ {[%clk 0:01:24]}  Kf7 {[%clk 0:01:18]} 46. Ne5+ {[%clk 0:01:21]}  Ke6 {[%clk 0:01:14]} 47. Re8+ {[%clk 0:01:14]}  Kd5 {[%clk 0:01:12]} 48. Rd8+ {[%clk 0:01:14]}  Kc5 {[%clk 0:01:09]} 49. Nd3+ {[%clk 0:01:13]}  Kc6 {[%clk 0:01:01]} 50. Nd4+ {[%clk 0:01:11]}  Kb6 {[%clk 0:00:59]} 51. Rd6+ {[%clk 0:01:10]}  Kc7 {[%clk 0:00:58]} 52. Rc6+ {[%clk 0:01:08]}  Kd7 {[%clk 0:00:57]} 53. Ne5+ {[%clk 0:01:05]}  Kd8 {[%clk 0:00:56]} 54. Rd6+ {[%clk 0:01:02]}  Ke7 {[%clk 0:00:52]} 55. Ndc6+ {[%clk 0:01:00]}  Kxd6 {[%clk 0:00:51]} 56. Nd4 {[%clk 0:00:59]}  Rg7+ {[%clk 0:00:49]} 57. Kf3 {[%clk 0:00:59]}  Rg1 {[%clk 0:00:41]} 58. Nxb3 {[%clk 0:00:58]}  Rf1+ {[%clk 0:00:34]} 59. Ke4 {[%clk 0:00:56]}  Rf2 {[%clk 0:00:32]} 60. h4 {[%clk 0:00:54]}  Re2+ {[%clk 0:00:30]} 61. Kf3 {[%clk 0:00:51]}  Rh2 {[%clk 0:00:30]} 62. Kg3 {[%clk 0:00:51]}  Rh1 {[%clk 0:00:29]} 63. Nd4 {[%clk 0:00:51]}  Rg1+ {[%clk 0:00:28]} 64. Kf3 {[%clk 0:00:50]}  Rg8 {[%clk 0:00:28]} 65. Ke4 {[%clk 0:00:50]}  Rg1 {[%clk 0:00:20]} 66. b4 {[%clk 0:00:50]}  Re1+ {[%clk 0:00:18]} 67. Kf5 {[%clk 0:00:50]}  Ke7 {[%clk 0:00:16]} 68. b5 {[%clk 0:00:50]}  Kd8 {[%clk 0:00:15]} 69. b6 {[%clk 0:00:50]}  Rb1 {[%clk 0:00:13]} 70. Ne6+ {[%clk 0:00:48]}  Ke7 {[%clk 0:00:12]} 71. Nc7 {[%clk 0:00:48]}  Kd8 {[%clk 0:00:10]} 72. Nd5 {[%clk 0:00:48]}  Rb5 {[%clk 0:00:10]} 73. Ke6 {[%clk 0:00:48]}  Rb1 {[%clk 0:00:08]} 74. h5 {[%clk 0:00:48]}  Rh1 {[%clk 0:00:08]} 75. b7 {[%clk 0:00:48]}  Rb1 {[%clk 0:00:07]} 76. b8=Q+ {[%clk 0:00:48]}  Rxb8 {[%clk 0:00:07]} 77. Nc6+ {[%clk 0:00:49]}  Ke8 {[%clk 0:00:07]} 78. h6 {[%clk 0:00:45]}  Kf8 {[%clk 0:00:08]} 79. f5 {[%clk 0:00:45]}  Re8+ {[%clk 0:00:07]} 80. Nce7 {[%clk 0:00:45]}  Ra8 {[%clk 0:00:05]} 81. h7 {[%clk 0:00:45]}  Kg7 {[%clk 0:00:05]} 82. h8=Q+ {[%clk 0:00:44]}  Kxh8 {[%clk 0:00:05]} 83. Ng6+ {[%clk 0:00:44]}  Kg7 {[%clk 0:00:05]} 84. Ne5 {[%clk 0:00:38]}  Ra6+ {[%clk 0:00:05]} 85. Ke7 {[%clk 0:00:37]}  Ra7+ {[%clk 0:00:05]} 86. Nd7 {[%clk 0:00:38]}  Kg8 {[%clk 0:00:04]} 87. Nf6+ {[%clk 0:00:38]}  Kg7 {[%clk 0:00:04]} 88. Ne8+ {[%clk 0:00:37]}  Kh7 {[%clk 0:00:04]} 89. f6 {[%clk 0:00:38]}  Ra1 {[%clk 0:00:04]} 90. f7 {[%clk 0:00:37]}  Re1+ {[%clk 0:00:05]} 91. Kf8 {[%clk 0:00:32]}  Rf1 {[%clk 0:00:05]} 92. Nef6+ {[%clk 0:00:32]}  Kg6 {[%clk 0:00:05]} 93. Kg8 {[%clk 0:00:31]}  Rg1 {[%clk 0:00:02]} 94. f8=Q {[%clk 0:00:29]}  Kf5+ {[%clk 0:00:03]} 95. Kf7 {[%clk 0:00:29]}  Rf1 {[%clk 0:00:03]} 96. Qc5+ {[%clk 0:00:29]}  Kf4 {[%clk 0:00:02]} 97. Qc4+ {[%clk 0:00:29]}  Kg5 {[%clk 0:00:02]} 98. Kg7 {[%clk 0:00:27]}  Rg1 {[%clk 0:00:02]} 99. Kf7 {[%clk 0:00:25]}  Kf5 {[%clk 0:00:03]} 100. Qe4+ {[%clk 0:00:24]}  Kg5 {[%clk 0:00:04]} 101. Qg6+ {[%clk 0:00:25]}  Kh4 {[%clk 0:00:04]} 102. Qh5+ {[%clk 0:00:22]}  Kg3 {[%clk 0:00:04]} 103. Ne5 {[%clk 0:00:22]}  Rf1 {[%clk 0:00:04]} 104. Qg4+ {[%clk 0:00:22]}  Kf2 {[%clk 0:00:04]} 105. Ke6 {[%clk 0:00:21]}  Ke1 {[%clk 0:00:05]} 106. Qe4+ {[%clk 0:00:21]}  Kf2 {[%clk 0:00:04]} 107. Neg4+ {[%clk 0:00:21]}  Kg1 {[%clk 0:00:04]} 108. Qe2 {[%clk 0:00:20]}  Ra1 {[%clk 0:00:01]} 109. Qf2+ {[%clk 0:00:20]}  Kh1 {[%clk 0:00:02]} 110. Qh2# {[%clk 0:00:20]} 1-0


[Site "https://www.chess.com"]

[Event "Titled Tuesday Blitz March 07 Early 2023"]
[White "Nazari, Arad"]
[Black "Hoffmann, Asa"]
[WhiteFideId "12577324"]
[BlackFideId "2001470"]
[WhiteElo "2313"]
[BlackElo "2117"]
[Result "1/2-1/2"]
[Round "01"]
[TimeControl "180+2"]
[Date "2023.03.07"]
[WhiteClock "0:00:06"]
[BlackClock "0:00:25"]

1. e4 {[%clk 0:02:41]}  d6 {[%clk 0:02:59]} 2. d4 {[%clk 0:02:37]}  Nf6 {[%clk 0:02:58]} 3. Nc3 {[%clk 0:02:37]}  c6 {[%clk 0:02:58]} 4. f4 {[%clk 0:02:36]}  Qa5 {[%clk 0:02:57]} 5. Bd3 {[%clk 0:02:35]}  e5 {[%clk 0:02:57]} 6. Nf3 {[%clk 0:02:33]}  exd4 {[%clk 0:02:56]} 7. Nxd4 {[%clk 0:02:33]}  Qb6 {[%clk 0:02:55]} 8. Nb3 {[%clk 0:02:29]}  a5 {[%clk 0:02:53]} 9. Qe2 {[%clk 0:02:21]}  a4 {[%clk 0:02:53]} 10. Be3 {[%clk 0:02:21]}  Qb4 {[%clk 0:02:52]} 11. a3 {[%clk 0:02:11]}  axb3 {[%clk 0:02:51]} 12. axb4 {[%clk 0:02:11]}  Rxa1+ {[%clk 0:02:50]} 13. Nd1 {[%clk 0:02:11]}  Bg4 {[%clk 0:02:49]} 14. Qd2 {[%clk 0:00:50]}  Rxd1+ {[%clk 0:02:38]} 15. Qxd1 {[%clk 0:00:50]}  Bxd1 {[%clk 0:02:38]} 16. Kxd1 {[%clk 0:00:51]}  d5 {[%clk 0:02:26]} 17. e5 {[%clk 0:00:44]}  Ne4 {[%clk 0:02:20]} 18. cxb3 {[%clk 0:00:41]}  Bxb4 {[%clk 0:02:18]} 19. Ke2 {[%clk 0:00:40]}  Nd7 {[%clk 0:02:17]} 20. Ra1 {[%clk 0:00:37]}  O-O {[%clk 0:02:15]} 21. Ra4 {[%clk 0:00:35]}  Bc5 {[%clk 0:02:13]} 22. Bxe4 {[%clk 0:00:33]}  dxe4 {[%clk 0:02:05]} 23. Rxe4 {[%clk 0:00:34]}  Bxe3 {[%clk 0:02:05]} 24. Kxe3 {[%clk 0:00:35]}  Nc5 {[%clk 0:02:00]} 25. Rb4 {[%clk 0:00:20]}  Rd8 {[%clk 0:01:56]} 26. f5 {[%clk 0:00:13]}  Rd3+ {[%clk 0:01:51]} 27. Ke2 {[%clk 0:00:14]}  Rxb3 {[%clk 0:01:51]} 28. Rd4 {[%clk 0:00:14]}  Rxb2+ {[%clk 0:01:50]} 29. Ke3 {[%clk 0:00:15]}  h5 {[%clk 0:01:44]} 30. Rd8+ {[%clk 0:00:15]}  Kh7 {[%clk 0:01:44]} 31. Rf8 {[%clk 0:00:15]}  Rb4 {[%clk 0:01:41]} 32. Re8 {[%clk 0:00:10]}  b5 {[%clk 0:01:31]} 33. g3 {[%clk 0:00:10]}  Re4+ {[%clk 0:01:29]} 34. Kf3 {[%clk 0:00:11]}  b4 {[%clk 0:01:28]} 35. h3 {[%clk 0:00:08]}  b3 {[%clk 0:01:28]} 36. g4 {[%clk 0:00:09]}  hxg4+ {[%clk 0:01:24]} 37. hxg4 {[%clk 0:00:09]}  f6 {[%clk 0:01:13]} 38. e6 {[%clk 0:00:08]}  g6 {[%clk 0:01:00]} 39. Rc8 {[%clk 0:00:04]}  gxf5 {[%clk 0:00:58]} 40. gxf5 {[%clk 0:00:05]}  Nxe6 {[%clk 0:00:57]} 41. fxe6 {[%clk 0:00:05]}  Rxe6 {[%clk 0:00:56]} 42. Rb8 {[%clk 0:00:05]}  Kg6 {[%clk 0:00:55]} 43. Rxb3 {[%clk 0:00:05]}  c5 {[%clk 0:00:55]} 44. Rb8 {[%clk 0:00:05]}  Rc6 {[%clk 0:00:55]} 45. Ke3 {[%clk 0:00:05]}  c4 {[%clk 0:00:54]} 46. Kd2 {[%clk 0:00:05]}  c3+ {[%clk 0:00:54]} 47. Kc2 {[%clk 0:00:06]}  Kg5 {[%clk 0:00:54]} 48. Rg8+ {[%clk 0:00:06]}  Kf4 {[%clk 0:00:54]} 49. Rg1 {[%clk 0:00:06]}  f5 {[%clk 0:00:53]} 50. Rf1+ {[%clk 0:00:07]}  Ke5 {[%clk 0:00:52]} 51. Re1+ {[%clk 0:00:08]}  Kd4 {[%clk 0:00:52]} 52. Rd1+ {[%clk 0:00:08]}  Ke5 {[%clk 0:00:50]} 53. Re1+ {[%clk 0:00:08]}  Kf6 {[%clk 0:00:50]} 54. Rf1 {[%clk 0:00:09]}  Rc4 {[%clk 0:00:50]} 55. Kd3 {[%clk 0:00:08]}  Rc5 {[%clk 0:00:46]} 56. Kc2 {[%clk 0:00:09]}  Ke5 {[%clk 0:00:43]} 57. Re1+ {[%clk 0:00:09]}  Kd6 {[%clk 0:00:43]} 58. Rf1 {[%clk 0:00:08]}  Kc6 {[%clk 0:00:43]} 59. Rf3 {[%clk 0:00:07]}  Kb5 {[%clk 0:00:43]} 60. Rxc3 {[%clk 0:00:04]}  Rd5 {[%clk 0:00:42]} 61. Rf3 {[%clk 0:00:04]}  Kc6 {[%clk 0:00:40]} 62. Kc3 {[%clk 0:00:04]}  Kd6 {[%clk 0:00:40]} 63. Kc4 {[%clk 0:00:05]}  Ra5 {[%clk 0:00:38]} 64. Kd4 {[%clk 0:00:04]}  Ra4+ {[%clk 0:00:38]} 65. Ke3 {[%clk 0:00:05]}  Ke5 {[%clk 0:00:37]} 66. Rf1 {[%clk 0:00:03]}  Ra3+ {[%clk 0:00:37]} 67. Kf2 {[%clk 0:00:04]}  Kf4 {[%clk 0:00:36]} 68. Rc1 {[%clk 0:00:02]}  Ra2+ {[%clk 0:00:35]} 69. Kf1 {[%clk 0:00:03]}  Kg4 {[%clk 0:00:33]} 70. Rc3 {[%clk 0:00:03]}  f4 {[%clk 0:00:33]} 71. Rb3 {[%clk 0:00:03]}  f3 {[%clk 0:00:32]} 72. Rb8 {[%clk 0:00:04]}  Kf4 {[%clk 0:00:32]} 73. Rf8+ {[%clk 0:00:04]}  Ke3 {[%clk 0:00:32]} 74. Re8+ {[%clk 0:00:05]}  Kd4 {[%clk 0:00:31]} 75. Rd8+ {[%clk 0:00:05]}  Ke3 {[%clk 0:00:25]} 76. Re8+ {[%clk 0:00:05]}  Kf4 {[%clk 0:00:24]} 77. Rf8+ {[%clk 0:00:06]}  Ke3 {[%clk 0:00:25]} 78. Re8+ {[%clk 0:00:06]} 1/2-1/2


[Site "https://www.chess.com"]

[Event "Titled Tuesday Blitz March 07 Early 2023"]
[White "Rios Escobar, Adan"]
[Black "Rozman, Levy"]
[WhiteFideId "3403645"]
[BlackFideId "2039877"]
[WhiteElo "2399"]
[BlackElo "2376"]
[Result "0-1"]
[Round "01"]
[TimeControl "180+2"]
[Date "2023.03.07"]
[WhiteClock "0:00:01"]
[BlackClock "0:01:13"]

1. d4 {[%clk 0:03:00]}  d5 {[%clk 0:02:52]} 2. g3 {[%clk 0:03:00]}  c5 {[%clk 0:02:49]} 3. Nf3 {[%clk 0:03:00]}  Nc6 {[%clk 0:02:48]} 4. Bg2 {[%clk 0:03:00]}  Bg4 {[%clk 0:02:45]} 5. Nbd2 {[%clk 0:02:47]}  e6 {[%clk 0:02:44]} 6. O-O {[%clk 0:02:46]}  Nf6 {[%clk 0:02:40]} 7. b3 {[%clk 0:02:40]}  cxd4 {[%clk 0:02:39]} 8. Bb2 {[%clk 0:02:40]}  Bc5 {[%clk 0:02:37]} 9. a3 {[%clk 0:02:36]}  a5 {[%clk 0:02:36]} 10. h3 {[%clk 0:02:26]}  Bh5 {[%clk 0:02:33]} 11. b4 {[%clk 0:02:14]}  axb4 {[%clk 0:02:31]} 12. axb4 {[%clk 0:02:12]}  Bxb4 {[%clk 0:02:29]} 13. Rxa8 {[%clk 0:02:04]}  Qxa8 {[%clk 0:02:29]} 14. Nxd4 {[%clk 0:02:02]}  Qa2 {[%clk 0:02:25]} 15. Nxc6 {[%clk 0:01:54]}  bxc6 {[%clk 0:02:21]} 16. Bxf6 {[%clk 0:01:43]}  gxf6 {[%clk 0:02:18]} 17. g4 {[%clk 0:01:41]}  Bg6 {[%clk 0:02:18]} 18. e4 {[%clk 0:01:34]}  O-O {[%clk 0:02:12]} 19. h4 {[%clk 0:00:23]}  h6 {[%clk 0:01:57]} 20. g5 {[%clk 0:00:17]}  fxg5 {[%clk 0:01:52]} 21. hxg5 {[%clk 0:00:18]}  hxg5 {[%clk 0:01:53]} 22. Nf3 {[%clk 0:00:18]}  f6 {[%clk 0:01:44]} 23. Nd4 {[%clk 0:00:14]}  dxe4 {[%clk 0:01:30]} 24. Nxc6 {[%clk 0:00:13]}  Bc5 {[%clk 0:01:27]} 25. Qd7 {[%clk 0:00:12]}  Qd5 {[%clk 0:01:22]} 26. Ne7+ {[%clk 0:00:04]}  Bxe7 {[%clk 0:01:21]} 27. Qxe7 {[%clk 0:00:05]}  Rf7 {[%clk 0:01:18]} 28. Qe8+ {[%clk 0:00:04]}  Kg7 {[%clk 0:01:18]} 29. Bh3 {[%clk 0:00:03]}  g4 {[%clk 0:01:15]} 30. Bxg4 {[%clk 0:00:01]}  Qg5 {[%clk 0:01:15]} 31. Qxe6 {[%clk 0:00:02]}  Bh5 {[%clk 0:01:13]} 32. f3 {[%clk 0:00:01]}  exf3 {[%clk 0:01:13]} 33. Rxf3 {[%clk 0:00:01]}  Bxg4 {[%clk 0:01:13]} 0-1


[Site "https://www.chess.com"]

[Event "Titled Tuesday Blitz March 07 Early 2023"]
[White "Vishnu, Prasanna. V"]
[Black "Szyszylo, Rafal"]
[WhiteFideId "5030692"]
[BlackFideId "1109626"]
[WhiteElo "2468"]
[BlackElo "1951"]
[Result "1-0"]
[Round "01"]
[TimeControl "180+2"]
[Date "2023.03.07"]
[WhiteClock "0:00:59"]
[BlackClock "0:00:03"]

1. c4 {[%clk 0:02:55]}  Nf6 {[%clk 0:02:59]} 2. Nf3 {[%clk 0:02:56]}  g6 {[%clk 0:02:59]} 3. g3 {[%clk 0:02:56]}  Bg7 {[%clk 0:03:00]} 4. Bg2 {[%clk 0:02:56]}  O-O {[%clk 0:03:00]} 5. O-O {[%clk 0:02:57]}  d6 {[%clk 0:03:00]} 6. Nc3 {[%clk 0:02:57]}  e5 {[%clk 0:03:00]} 7. d3 {[%clk 0:02:57]}  Nc6 {[%clk 0:03:00]} 8. Rb1 {[%clk 0:02:58]}  a5 {[%clk 0:02:59]} 9. b3 {[%clk 0:02:59]}  Bg4 {[%clk 0:02:59]} 10. Bb2 {[%clk 0:02:59]}  Qd7 {[%clk 0:02:59]} 11. Re1 {[%clk 0:02:51]}  Bh3 {[%clk 0:02:59]} 12. Bh1 {[%clk 0:02:49]}  h6 {[%clk 0:02:59]} 13. a3 {[%clk 0:02:48]}  Nh7 {[%clk 0:02:57]} 14. Nd5 {[%clk 0:02:48]}  f5 {[%clk 0:02:56]} 15. b4 {[%clk 0:02:48]}  axb4 {[%clk 0:02:56]} 16. axb4 {[%clk 0:02:47]}  Nf6 {[%clk 0:02:56]} 17. b5 {[%clk 0:02:47]}  Nd8 {[%clk 0:02:49]} 18. Nd2 {[%clk 0:02:42]}  Nxd5 {[%clk 0:02:40]} 19. cxd5 {[%clk 0:02:41]}  f4 {[%clk 0:02:33]} 20. Ne4 {[%clk 0:02:40]}  Bg4 {[%clk 0:02:25]} 21. Qc2 {[%clk 0:02:40]}  f3 {[%clk 0:02:22]} 22. exf3 {[%clk 0:02:37]}  Bxf3 {[%clk 0:02:23]} 23. Bxf3 {[%clk 0:02:30]}  Rxf3 {[%clk 0:02:24]} 24. Rec1 {[%clk 0:02:28]}  Rf7 {[%clk 0:02:23]} 25. Bc3 {[%clk 0:02:24]}  b6 {[%clk 0:02:22]} 26. Bd2 {[%clk 0:02:24]}  Nb7 {[%clk 0:02:20]} 27. Qc6 {[%clk 0:02:22]}  Qxc6 {[%clk 0:02:20]} 28. bxc6 {[%clk 0:02:22]}  Nc5 {[%clk 0:02:12]} 29. Ra1 {[%clk 0:02:20]}  Rxa1 {[%clk 0:02:02]} 30. Rxa1 {[%clk 0:02:20]}  Nxd3 {[%clk 0:02:03]} 31. Ra8+ {[%clk 0:02:19]}  Kh7 {[%clk 0:02:02]} 32. Ra7 {[%clk 0:02:18]}  Kg8 {[%clk 0:01:50]} 33. Nxd6 {[%clk 0:02:18]}  Rxf2 {[%clk 0:01:44]} 34. Be3 {[%clk 0:02:02]}  Re2 {[%clk 0:01:30]} 35. Ne8 {[%clk 0:01:18]}  Rxe3 {[%clk 0:01:27]} 36. Rxc7 {[%clk 0:01:12]}  Re1+ {[%clk 0:00:35]} 37. Kg2 {[%clk 0:01:08]}  Re2+ {[%clk 0:00:20]} 38. Kf3 {[%clk 0:01:06]}  Rf2+ {[%clk 0:00:12]} 39. Ke3 {[%clk 0:01:06]}  Rf7 {[%clk 0:00:11]} 40. Kxd3 {[%clk 0:01:04]}  Rxc7 {[%clk 0:00:04]} 41. Nxc7 {[%clk 0:01:03]}  Kf7 {[%clk 0:00:04]} 42. Nb5 {[%clk 0:01:00]}  Bf8 {[%clk 0:00:03]} 43. c7 {[%clk 0:00:59]} 1-0


[Site "https://www.chess.com"]